lending/lending_fUSD_20250409
["ID","MTS","AMOUNT","RATE_DAILY","PERIOD"]
[357617205,1744235567299,-165.94339,0.00041888,7]
[357617206,1744235567312,-568.0,0.0004189,120]
[357617207,1744235567323,-485.13188823,0.00041917,2]
[357617208,1744235567334,-1000.0,0.00041917,2]
[357617209,1744235567344,-500.0,0.00041917,2]
[357617210,1744235567355,-768.82,0.00041917,2]
[357617211,1744235567367,-1033.22,0.00041917,2]
[357617212,1744235567377,-690.19,0.00041917,2]
[357617213,1744235567389,-199.15653453,0.00041917,2]
[357617214,1744235567400,-500.0,0.00041917,2]
[357617215,1744235567420,-653.93,0.00041917,2]
[357617216,1744235567439,-500.0,0.00041917,2]
[357617217,1744235567450,-500.0,0.00041917,2]
[357617218,1744235567461,-314.93693694,0.00041917,2]
[357617219,1744235567475,-500.0,0.00041917,2]
[357617220,1744235567486,-562.39,0.00041917,2]
[357617221,1744235567496,-500.0,0.00041917,2]
[357617222,1744235567508,-500.0,0.00041917,2]
[357617223,1744235567521,-500.0,0.00041917,2]
[357617224,1744235567531,-523.63,0.00041917,2]
[357617225,1744235567542,-575.25,0.00041917,2]
[357617226,1744235567552,-643.66,0.00041917,2]
[357617227,1744235567563,-500.0,0.00041917,2]
[357617228,1744235567573,-500.0,0.00041917,2]
[357617229,1744235567583,-517.26,0.00041917,2]
[357617230,1744235567594,-509.1,0.00041917,2]
[357617231,1744235567604,-544.02,0.00041917,2]
[357617232,1744235567615,-1591.25,0.00041917,2]
[357617233,1744235567625,-158.229282,0.00041917,2]
[357617234,1744235567636,-922.766495,0.00041917,2]
[357617235,1744235567647,-500.0,0.00041917,2]
[357617236,1744235567659,-325.94345912,0.00041917,2]
[357617237,1744235567669,-512.21,0.00041917,2]
[357617238,1744235567680,-1481.605419,0.00041917,2]
[357617239,1744235567690,-575.18,0.00041917,2]
[357617240,1744235567700,-1103.241651,0.00041917,2]
[357617241,1744235567711,-500.0,0.00041917,2]
[357617242,1744235567722,-152.130457,0.00041917,2]
[357617243,1744235567732,-555.55,0.00041917,2]
[357617244,1744235567743,-716.17,0.00041917,2]
[357617245,1744235567753,-569.8,0.00041917,2]
[357617246,1744235567763,-500.0,0.00041917,2]
[357617247,1744235567773,-573.48846609,0.00041917,2]
[357617248,1744235567783,-161.46064387,0.00041917,2]
[357617249,1744235567793,-500.0,0.00041917,2]
[357617250,1744235567802,-510.09398578,0.00041917,2]
[357617251,1744235567811,-463.88600577,0.00041917,2]
[357617252,1744235567821,-523.55,0.00041917,2]
[357617253,1744235567830,-500.0,0.00041917,2]
[357617254,1744235567839,-500.0,0.00041917,2]
[357617255,1744235567848,-641.56,0.00041917,2]
[357617256,1744235567858,-522.12,0.00041917,2]
[357617257,1744235567867,-671.33,0.00041917,2]
[357617258,1744235567877,-500.0,0.00041917,2]
[357617259,1744235567886,-898.3,0.00041917,2]
[357617260,1744235567897,-500.0,0.00041917,2]
[357617261,1744235567907,-500.0,0.00041917,2]
[357617262,1744235567929,-500.0,0.00041917,2]
[357617263,1744235567939,-500.0,0.00041917,2]
[357617264,1744235567949,-156.788597,0.00041917,2]
[357617265,1744235567960,-1488.11,0.00041917,2]
[357617266,1744235567971,-500.0,0.00041917,2]
[357617267,1744235567981,-500.0,0.00041917,2]
[357617268,1744235567990,-1346.88,0.00041917,2]
[357617269,1744235568001,-173.14332226,0.00041917,2]
[357617270,1744235568011,-600.91,0.00041917,2]
[357617271,1744235568021,-500.0,0.00041917,2]
[357617272,1744235568031,-500.0,0.00041917,2]
[357617273,1744235568041,-500.0,0.00041917,2]
[357617274,1744235568051,-1062.56,0.00041917,2]
[357617275,1744235568062,-1328.67,0.00041917,2]
[357617276,1744235568073,-1098.1,0.00041917,2]
[357617277,1744235568083,-1109.78,0.00041917,2]
[357617278,1744235568093,-500.0,0.00041917,2]
[357617279,1744235568104,-500.0,0.00041917,2]
[357617280,1744235568114,-500.0,0.00041917,2]
[357617281,1744235568125,-2058.98,0.00041917,2]
[357617282,1744235568135,-636.06163919,0.00041917,2]
[357617283,1744235568145,-601.54,0.00041917,2]
[357617284,1744235568155,-704.15,0.00041917,2]
[357617285,1744235568169,-500.0,0.00041917,2]
[357617286,1744235568180,-1533.75,0.00041917,2]
[357617287,1744235568191,-890.15,0.00041917,2]
[357617288,1744235568202,-2033.59,0.00041917,2]
[357617289,1744235568212,-502.62236191,0.00041917,2]
[357617290,1744235568223,-1091.45,0.00041917,2]
[357617291,1744235568234,-998.38,0.00041917,2]
[357617292,1744235568244,-990.73,0.00041917,2]
[357617293,1744235568254,-740.02,0.00041917,2]
[357617294,1744235568264,-500.0,0.00041917,2]
[357617295,1744235568275,-840.51,0.00041917,2]
[357617296,1744235568285,-1255.28,0.00041917,2]
[357617297,1744235568295,-500.0,0.00041917,2]
[357617298,1744235568306,-628.73,0.00041917,2]
[357617299,1744235568316,-1122.08,0.00041917,2]
[357617300,1744235568327,-851.89,0.00041917,2]
[357617301,1744235568338,-500.0,0.00041917,2]
[357617302,1744235568348,-500.0,0.00041917,2]
[357617303,1744235568358,-1594.69,0.00041917,2]
[357617304,1744235568369,-846.31,0.00041917,2]
[357617305,1744235568380,-634.01,0.00041917,2]
[357617306,1744235568392,-500.0,0.00041917,2]
[357617307,1744235568403,-500.0,0.00041917,2]
[357617308,1744235568420,-1789.24,0.00041917,2]
[357617309,1744235568434,-500.0,0.00041917,2]
[357617310,1744235568446,-500.0,0.00041917,2]
[357617311,1744235568457,-500.0,0.00041917,2]
[357617312,1744235568470,-904.2,0.00041917,2]
[357617313,1744235568484,-2100.49,0.00041917,2]
[357617314,1744235568495,-1008.97,0.00041917,2]
[357617315,1744235568506,-575.38,0.00041917,2]
[357617316,1744235568518,-980.91,0.00041917,2]
[357617317,1744235568529,-744.07,0.00041917,2]
[357617318,1744235568540,-1364.94,0.00041917,2]
[357617319,1744235568550,-500.0,0.00041917,2]
[357617320,1744235568562,-500.0,0.00041917,2]
[357617321,1744235568573,-747.87,0.00041917,2]
[357617322,1744235568584,-850.11,0.00041917,2]
[357617323,1744235568594,-1247.64,0.00041917,2]
[357617324,1744235568605,-1102.32,0.00041917,2]
[357617325,1744235568615,-659.47,0.00041917,2]
[357617326,1744235568625,-588.76,0.00041917,2]
[357617327,1744235568636,-500.0,0.00041917,2]
[357617328,1744235568646,-500.0,0.00041917,2]
[357617329,1744235568658,-626.4,0.00041917,2]
[357617330,1744235568669,-500.0,0.00041917,2]
[357617331,1744235568679,-992.17,0.00041917,2]
[357617332,1744235568690,-500.0,0.00041917,2]
[357617333,1744235568702,-500.0,0.00041917,2]
[357617334,1744235568712,-500.0,0.00041917,2]
[357617335,1744235568723,-863.74,0.00041917,2]
[357617336,1744235568733,-669.2,0.00041917,2]
[357617337,1744235568744,-591.50706787,0.00041917,2]
[357617338,1744235568755,-500.2,0.00041917,2]
[357617339,1744235568766,-500.0,0.00041917,2]
[357617340,1744235568776,-500.0,0.00041917,2]
[357617341,1744235568786,-500.0,0.00041917,2]
[357617342,1744235568796,-623.22,0.00041917,2]
[357617343,1744235568807,-987.07,0.00041917,2]
[357617344,1744235568818,-500.0,0.00041917,2]
[357617345,1744235568828,-500.0,0.00041917,2]
[357617346,1744235568838,-500.0,0.00041917,2]
[357617347,1744235568848,-663.93,0.00041917,2]
[357617348,1744235568858,-223.25902626,0.00041917,2]
[357617349,1744235568869,-500.0,0.00041917,2]
[357617350,1744235568879,-950.19,0.00041917,2]
[357617351,1744235568890,-1150.41,0.00041917,2]
[357617352,1744235568900,-700.43,0.00041917,2]
[357617353,1744235568912,-500.0,0.00041917,2]
[357617354,1744235568922,-1196.11,0.00041917,2]
[357617355,1744235568932,-533.1,0.00041917,2]
[357617356,1744235568943,-500.0,0.00041917,2]
[357617357,1744235568953,-1644.09,0.00041917,2]
[357617358,1744235568963,-500.0,0.00041917,2]
[357617359,1744235568973,-509.54,0.00041917,2]
[357617360,1744235568983,-605.75,0.00041917,2]
[357617361,1744235568993,-872.19,0.00041917,2]
[357617362,1744235569003,-2888.05,0.00041917,2]
[357617363,1744235569013,-1530.18,0.00041917,2]
[357617364,1744235569023,-538.29,0.00041917,2]
[357617365,1744235569034,-1392.95,0.00041917,2]
[357617366,1744235569045,-529.21,0.00041917,2]
[357617367,1744235569056,-760.73,0.00041917,2]
[357617368,1744235569067,-1014.21,0.00041917,2]
[357617369,1744235569078,-728.15,0.00041917,2]
[357617370,1744235569089,-671.68,0.00041917,2]
[357617371,1744235569100,-582.4,0.00041917,2]
[357617372,1744235569111,-600.66,0.00041917,2]
[357617373,1744235569122,-905.89,0.00041917,2]
[357617374,1744235569133,-500.0,0.00041917,2]
[357617375,1744235569144,-640.01,0.00041917,120]
[357617376,1744235569155,-500.0,0.00041917,2]
[357617377,1744235569168,-600.12,0.00041917,2]
[357617378,1744235569179,-500.0,0.00041917,2]
[357617379,1744235569189,-696.24,0.00041917,2]
[357617380,1744235569199,-574.51,0.00041917,2]
[357617381,1744235569210,-621.38,0.00041917,2]
[357617382,1744235569222,-564.04,0.00041917,2]
[357617383,1744235569232,-500.0,0.00041917,2]
[357617384,1744235569243,-662.39,0.00041917,2]
[357617385,1744235569254,-1138.96,0.00041917,2]
[357617386,1744235569266,-500.0,0.00041917,2]
[357617387,1744235569277,-506.09,0.00041917,2]
[357617388,1744235569288,-557.52,0.00041917,2]
[357617389,1744235569299,-593.38,0.00041917,2]
[357617390,1744235569313,-978.21,0.00041917,2]
[357617391,1744235569324,-500.0,0.00041917,2]
[357617392,1744235569336,-500.0,0.00041917,2]
[357617393,1744235569347,-879.62,0.00041917,2]
[357617394,1744235569359,-915.14,0.00041917,2]
[357617395,1744235569370,-972.17,0.00041917,2]
[357617396,1744235569383,-689.1,0.00041917,2]
[357617397,1744235569395,-693.42,0.00041917,2]
[357617398,1744235569410,-500.0,0.00041917,2]
[357617399,1744235569423,-1204.18,0.00041917,2]
[357617400,1744235569434,-500.0,0.00041917,2]
[357617401,1744235569446,-2109.43,0.00041917,2]
[357617402,1744235569458,-922.86,0.00041917,2]
[357617403,1744235569471,-500.0,0.00041917,2]
[357617404,1744235569483,-500.0,0.00041917,2]
[357617405,1744235569495,-738.28,0.00041917,2]
[357617406,1744235569507,-524.33,0.00041917,2]
[357617407,1744235569520,-582.79,0.00041917,2]
[357617408,1744235569531,-500.0,0.00041917,2]
[357617409,1744235569542,-529.9,0.00041917,2]
[357617410,1744235569554,-520.25,0.00041917,2]
[357617411,1744235569566,-500.0,0.00041917,2]
[357617412,1744235569578,-500.0,0.00041917,2]
[357617413,1744235569590,-500.0,0.00041917,2]
[357617414,1744235569602,-563.51,0.00041917,2]
[357617415,1744235569613,-515.76,0.00041917,2]
[357617416,1744235569625,-1455.64,0.00041917,2]
[357617417,1744235569637,-500.0,0.00041917,2]
[357617418,1744235569650,-944.08,0.00041917,2]
[357617419,1744235569664,-1259.75,0.00041917,2]
[357617420,1744235569677,-949.83,0.00041917,2]
[357617421,1744235569689,-867.9,0.00041917,2]
[357617422,1744235569701,-712.22,0.00041917,2]
[357617423,1744235569712,-676.54,0.00041917,2]
[357617424,1744235569725,-2873.89,0.00041917,2]
[357617425,1744235569736,-865.86,0.00041917,2]
[357617426,1744235569747,-734.44,0.00041917,2]
[357617427,1744235569758,-1213.14,0.00041917,2]
[357617428,1744235569769,-500.0,0.00041917,2]
[357617429,1744235569779,-510.47,0.00041917,2]
[357617430,1744235569790,-544.23298523,0.00041917,2]
[357617431,1744235569801,-433.62975385,0.00041917,2]
[357617432,1744235569812,-1235.75,0.00041917,2]
[357617433,1744235569822,-2062.74,0.00041917,2]
[357617434,1744235569833,-500.0,0.00041917,2]
[357617435,1744235569843,-1627.43,0.00041917,2]
[357617436,1744235569853,-779.34,0.00041917,2]
[357617437,1744235569864,-1736.3,0.00041917,2]
[357617438,1744235569874,-500.0,0.00041917,2]
[357617439,1744235569884,-579.96,0.00041917,2]
[357617440,1744235569894,-2303.11,0.00041917,2]
[357617441,1744235569905,-21393.93,0.00041917,2]
[357617442,1744235569917,-1487.15,0.00041917,2]
[357617443,1744235569928,-500.0,0.00041917,2]
[357617444,1744235569939,-1444.32,0.00041917,2]
[357617445,1744235569949,-531.51,0.00041917,2]
[357617446,1744235569960,-798.61,0.00041917,2]
[357617447,1744235569970,-663.86,0.00041917,2]
[357617448,1744235569981,-1448.83,0.00041917,2]
[357617449,1744235569991,-1070.68,0.00041917,2]
[357617450,1744235570002,-720.05,0.00041917,2]
[357617451,1744235570012,-4523.75,0.00041917,2]
[357617452,1744235570023,-1045.81,0.00041917,2]
[357617453,1744235570033,-2369.93,0.00041917,2]
[357617454,1744235570044,-675.07,0.00041917,2]
[357617455,1744235570055,-815.31,0.00041917,2]
[357617456,1744235570065,-680.79,0.00041917,2]
[357617457,1744235570076,-3877.45,0.00041917,2]
[357617458,1744235570086,-1072.51,0.00041917,2]
[357617459,1744235570097,-920.84,0.00041917,2]
[357617460,1744235570107,-1250.82,0.00041917,2]
[357617461,1744235570117,-1683.83,0.00041917,2]
[357617462,1744235570127,-904.45,0.00041917,2]
[357617463,1744235570138,-8073.34,0.00041917,2]
[357617464,1744235570148,-951.26,0.00041917,2]
[357617465,1744235570160,-567.52,0.00041917,2]
[357617466,1744235570171,-500.31119276,0.00041917,2]
[357617467,1744235570182,-714.37,0.00041917,2]
[357617468,1744235570192,-507.52,0.00041917,2]
[357617469,1744235570203,-1034.56,0.00041917,2]
[357617470,1744235570214,-7044.24,0.00041917,2]
[357617471,1744235570224,-593.89,0.00041917,2]
[357617472,1744235570235,-614.18,0.00041917,2]
[357617473,1744235570246,-1119.95,0.00041917,2]
[357617474,1744235570258,-1165.25,0.00041917,2]
[357617475,1744235570269,-1010.11,0.00041917,2]
[357617476,1744235570279,-3541.99,0.00041917,2]
[357617477,1744235570290,-2285.66,0.00041917,2]
[357617478,1744235570300,-1097.67,0.00041917,2]
[357617479,1744235570566,-1278.84,0.00041917,30]
[357617480,1744235570578,-289.96495926,0.00041917,2]
[357617481,1744235570588,-313.46097873,0.00041917,2]
[357617482,1744235570599,-500.0,0.00041917,2]
[357617483,1744235570609,-737.02,0.00041917,2]
[357617484,1744235570619,-1205.42,0.00041917,2]
[357617485,1744235570630,-622.25,0.00041917,2]
[357617486,1744235570640,-626.72,0.00041917,2]
[357617487,1744235570650,-1595.13,0.00041917,2]
[357617488,1744235570663,-1037.81,0.00041917,2]
[357617489,1744235570673,-993.54,0.00041917,2]
[357617490,1744235570684,-4569.67,0.00041917,2]
[357617491,1744235570694,-597.13,0.00041917,2]
[357617492,1744235570704,-925.07,0.00041917,2]
[357617493,1744235570714,-930.17,0.00041917,2]
[357617494,1744235570724,-500.0,0.00041917,2]
[357617495,1744235570734,-733.46,0.00041917,2]
[357617496,1744235570744,-500.0,0.00041917,2]
[357617497,1744235570754,-803.16,0.00041917,2]
[357617498,1744235570765,-1134.05,0.00041917,2]
[357617499,1744235570775,-6999.86,0.00041917,2]
[357617500,1744235570784,-500.0,0.00041917,2]
[357617501,1744235570794,-2881.42,0.00041917,2]
[357617502,1744235570804,-42423.7,0.00041917,2]
[357617503,1744235570814,-500.0,0.00041917,2]
[357617504,1744235570824,-1337.8,0.00041917,2]
[357617505,1744235570834,-1079.31,0.00041917,2]
[357617506,1744235570844,-509.05,0.00041917,2]
[357617507,1744235570854,-500.0,0.00041917,2]
[357617508,1744235570863,-1032.24,0.00041917,2]
[357617509,1744235570874,-1046.49,0.00041917,2]
[357617510,1744235570884,-1965.19,0.00041917,2]
[357617511,1744235570894,-1002.75,0.00041917,2]
[357617512,1744235570904,-23770.72,0.00041917,2]
[357617513,1744235570916,-500.0,0.00041917,2]
[357617514,1744235570925,-500.0,0.00041917,2]
[357617515,1744235570935,-1158.53,0.00041917,2]
[357617516,1744235570944,-500.0,0.00041917,2]
[357617517,1744235570954,-2575.45,0.00041917,2]
[357617518,1744235570963,-500.0,0.00041917,2]
[357617519,1744235570973,-500.0,0.00041917,2]
[357617520,1744235570983,-839.12,0.00041917,2]
[357617521,1744235570993,-1417.52,0.00041917,2]
[357617522,1744235571004,-375.65,0.00041917,2]
[357617523,1744235571014,-2351.29,0.00041917,2]
[357617524,1744235571025,-500.0,0.00041917,2]
[357617525,1744235571036,-925.42,0.00041917,2]
[357617526,1744235571046,-500.0,0.00041917,2]
[357617527,1744235571056,-500.0,0.00041917,2]
[357617528,1744235571066,-500.0,0.00041917,2]
[357617529,1744235571076,-4543.65,0.00041917,2]
[357617530,1744235571086,-545.88448379,0.00041917,2]
[357617531,1744235571096,-589.28,0.00041917,2]
[357617532,1744235571105,-500.0,0.00041917,2]
[357617533,1744235571114,-1261.56,0.00041917,2]
[357617534,1744235571124,-908.44,0.00041917,2]
[357617535,1744235571134,-867.74,0.00041917,2]
[357617536,1744235571143,-907.73,0.00041917,2]
[357617537,1744235571153,-660.09,0.00041917,2]
[357617538,1744235571165,-1190.9,0.00041917,2]
[357617539,1744235571175,-1267.15,0.00041917,2]
[357617540,1744235571185,-500.0,0.00041917,2]
[357617541,1744235571195,-4887.83,0.00041917,2]
[357617542,1744235571204,-575.82,0.00041917,2]
[357617543,1744235571214,-774.45,0.00041917,2]
[357617544,1744235571224,-2640.49,0.00041917,2]
[357617545,1744235571234,-570.35,0.00041917,2]
[357617546,1744235571243,-929.61,0.00041917,2]
[357617547,1744235571253,-1204.87,0.00041917,2]
[357617548,1744235571263,-775.07,0.00041917,2]
[357617549,1744235571273,-852.59,0.00041917,2]
[357617550,1744235571283,-535.49,0.00041917,2]
[357617551,1744235571293,-706.53,0.00041917,2]
[357617552,1744235571303,-561.8,0.00041917,2]
[357617553,1744235571313,-1156.21,0.00041917,2]
[357617554,1744235571323,-1013.54,0.00041917,2]
[357617555,1744235571333,-1279.0,0.00041917,2]
[357617556,1744235571343,-1035.19,0.00041917,2]
[357617557,1744235571353,-846.03,0.00041917,2]
[357617558,1744235571362,-2136.41,0.00041917,2]
[357617559,1744235571372,-500.0,0.00041917,2]
[357617560,1744235571382,-4235.64,0.00041917,2]
[357617561,1744235571392,-592.54,0.00041917,2]
[357617562,1744235571401,-1028.37,0.00041917,2]
[357617563,1744235571413,-655.91,0.00041917,2]
[357617564,1744235571423,-774.63,0.00041917,2]
[357617565,1744235571433,-445.90024998,0.00041917,2]
[357617566,1744235571444,-668.99,0.00041917,2]
[357617567,1744235571454,-635.46,0.00041917,2]
[357617568,1744235571464,-771.42,0.00041917,2]
[357617569,1744235571475,-150.0,0.00041917,30]
[357617570,1744235571486,-500.0,0.00041917,2]
[357617571,1744235571498,-383.77187737,0.00041917,2]
[357617572,1744235571508,-631.73,0.00041917,2]
[357617573,1744235571520,-1805.21,0.00041917,2]
[357617574,1744235571530,-500.0,0.00041917,2]
[357617575,1744235571541,-500.0,0.00041917,2]
[357617576,1744235571553,-2082.58,0.00041917,2]
[357617577,1744235571563,-950.96,0.00041917,2]
[357617578,1744235571573,-548.27,0.00041917,2]
[357617579,1744235571583,-777.86,0.00041917,2]
[357617580,1744235571593,-500.0,0.00041917,2]
[357617581,1744235571603,-720.17,0.00041917,2]
[357617582,1744235571613,-1059.64,0.00041917,2]
[357617583,1744235571622,-587.39,0.00041917,2]
[357617584,1744235571632,-1208.61,0.00041917,2]
[357617585,1744235571642,-174266.75,0.00041917,2]
[357617586,1744235571652,-1106.78,0.00041917,2]
[357617587,1744235571663,-500.0,0.00041917,2]
[357617588,1744235571673,-1260.1,0.00041917,2]
[357617589,1744235571683,-738.67,0.00041917,2]
[357617590,1744235571693,-1252.62,0.00041917,2]
[357617591,1744235571702,-500.0,0.00041917,2]
[357617592,1744235571712,-1523.75,0.00041917,2]
[357617593,1744235571722,-818.49,0.00041917,2]
[357617594,1744235571731,-1179.84,0.00041917,2]
[357617595,1744235571741,-1025.1,0.00041917,2]
[357617596,1744235571750,-2893.36,0.00041917,2]
[357617597,1744235571760,-764.1,0.00041917,2]
[357617598,1744235571771,-21329.92,0.00041917,2]
[357617599,1744235571780,-707.54,0.00041917,2]
[357617600,1744235571791,-500.0,0.00041917,2]
[357617601,1744235571801,-1217.62,0.00041917,2]
[357617602,1744235571811,-500.0,0.00041917,2]
[357617603,1744235571821,-500.0,0.00041917,2]
[357617604,1744235571830,-653.91,0.00041917,2]
[357617605,1744235571840,-2083.86,0.00041917,2]
[357617606,1744235571850,-2729.49,0.00041917,2]
[357617607,1744235571860,-545.55,0.00041917,2]
[357617608,1744235571871,-500.0,0.00041917,2]
[357617609,1744235571881,-316.8524581,0.00041917,2]
[357617610,1744235571891,-510.38,0.00041917,2]
[357617611,1744235571901,-1954.17,0.00041917,2]
[357617612,1744235571913,-1354.05,0.00041917,2]
[357617613,1744235571922,-814.9,0.00041917,2]
[357617614,1744235571932,-195.49352694,0.00041917,2]
[357617615,1744235571943,-1048.37,0.00041917,2]
[357617616,1744235571953,-500.0,0.00041917,2]
[357617617,1744235571963,-4649.78,0.00041917,2]
[357617618,1744235571973,-500.0,0.00041917,2]
[357617619,1744235571983,-1964.65,0.00041917,2]
[357617620,1744235571993,-694.5,0.00041917,2]
[357617621,1744235572003,-1127.83,0.00041917,2]
[357617622,1744235572014,-507.13,0.00041917,2]
[357617623,1744235572023,-570.34,0.00041917,2]
[357617624,1744235572034,-1498.03,0.00041917,2]
[357617625,1744235572044,-809.55,0.00041917,2]
[357617626,1744235572054,-2525.83,0.00041917,2]
[357617627,1744235572064,-955.21,0.00041917,2]
[357617628,1744235572074,-1151.05,0.00041917,2]
[357617629,1744235572084,-500.0,0.00041917,2]
[357617630,1744235572094,-500.0,0.00041917,2]
[357617631,1744235572105,-500.0,0.00041917,2]
[357617632,1744235572114,-500.0,0.00041917,2]
[357617633,1744235572124,-500.0,0.00041917,2]
[357617634,1744235572134,-511.52,0.00041917,2]
[357617635,1744235572143,-686.74,0.00041917,2]
[357617636,1744235572153,-500.0,0.00041917,2]
[357617637,1744235572164,-500.0,0.00041917,2]
[357617638,1744235572174,-5051.26,0.00041917,2]
[357617639,1744235572184,-507.91,0.00041917,2]
[357617640,1744235572194,-170.03766194,0.00041941,14]
[357617641,1744235572204,-157.0,0.00041941,14]
[357617642,1744235572213,-157.0,0.00041941,14]
[357617643,1744235572223,-157.0,0.00041941,14]
[357617644,1744235572233,-157.0,0.00041941,14]
[357617645,1744235572242,-283.6747734,0.00041941,14]
[357617646,1744235572252,-568.0,0.0004197,120]
[357617647,1744235572262,-568.0,0.0004198,120]
[357617648,1744235572271,-568.69,0.0004198,120]
[357617649,1744235572281,-568.0,0.0004199,120]
[357617650,1744235572290,-568.0,0.0004199,120]
[357617651,1744235572300,-405475.42237517,0.00042,2]
[357617652,1744235572309,-3593.21272149,0.00042,120]
[357617653,1744235572319,-4000.0,0.00042,120]
[357617654,1744235572328,-1000.0,0.00042,5]
[357617655,1744235572338,-500.0,0.00042,120]
[357617656,1744235572347,-4000.0,0.00042,7]
[357617657,1744235572356,-487.16899826,0.00042,120]
[357617658,1744235572366,-64535.64312224,0.00042,2]
[357617659,1744235572376,-156011.34043583,0.00042,4]
[357617660,1744235572386,-82417.02861663,0.00042,2]
[357617661,1744235572395,-220.0,0.00042,120]
[357617662,1744235572405,-176.06664258,0.00042,120]
[357617663,1744235572418,-470.45434144,0.00042,16]
[357617664,1744235572428,-1800.0,0.00042,43]
[357617665,1744235572438,-176.66,0.00042,120]
[357617666,1744235572452,-270.88,0.00042,120]
[357617667,1744235572462,-1100.82,0.00042,120]
[357617668,1744235572474,-1300.0,0.00042,120]
[357617669,1744235572484,-297.94,0.00042,120]
[357617670,1744235572493,-504.76,0.00042,120]
[357617671,1744235572503,-7563.91,0.00042,120]
[357617672,1744235572515,-364.6,0.00042,120]
[357617673,1744235572525,-2573.71,0.00042,120]
[357617674,1744235572535,-257.24,0.00042,120]
[357617675,1744235572546,-1334.14817451,0.0004201,2]
[357617676,1744235572556,-218.05565682,0.00042032,30]
[357617677,1744235572566,-150.0,0.00042054,30]
[357617678,1744235572576,-165.94339,0.00042088,7]
[357617679,1744235572589,-582.0,0.000421,3]
[357617680,1744235572599,-1000.0,0.000421,120]
[357617681,1744235572609,-7539.596401,0.00042161,7]
[357617682,1744235572619,-2819.836328,0.00042161,7]
[357617683,1744235572629,-1433.555872,0.00042161,7]
[357617684,1744235572640,-150.0,0.00042171,120]
[357617685,1744235572650,-150.0,0.00042177,2]
[357617686,1744235572660,-200.0,0.00042188,120]
[357617687,1744235572670,-184.33903965,0.00042191,2]
[357617688,1744235572680,-500.0,0.00042191,2]
[357617689,1744235572690,-768.82,0.00042191,2]
[357617690,1744235572700,-1033.22,0.00042191,2]
[357617691,1744235572709,-690.19,0.00042191,2]
[357617692,1744235572719,-500.0,0.00042191,2]
[357617693,1744235572729,-653.93,0.00042191,2]
[357617694,1744235572738,-364.34760407,0.00042191,2]
[357617695,1744235572748,-500.0,0.00042191,2]
[357617696,1744235572758,-500.0,0.00042191,2]
[357617697,1744235572767,-562.39,0.00042191,2]
[357617698,1744235572777,-500.0,0.00042191,2]
[357617699,1744235572787,-500.0,0.00042191,2]
[357617700,1744235572797,-500.0,0.00042191,2]
[357617701,1744235572807,-523.63,0.00042191,2]
[357617702,1744235572817,-575.25,0.00042191,2]
[357617703,1744235572827,-643.66,0.00042191,2]
[357617704,1744235572837,-500.0,0.00042191,2]